bitfinex/quotes_ETHUSD_20251116
["timestamp","ask_amount","ask_price","bid_price","bid_amount"]
[1763317274123,0.878404,3109.8,3109.6,0.001]
[1763317274543,0.405504,3109.8,3109.6,0.001]
[1763317274891,0.878404,3109.8,3109.6,0.001]
[1763317275310,0.878404,3109.7,3109.6,0.001]
[1763317276829,0.4818,3109.6,3109.3,0.001]
[1763317277028,0.405504,3109.5,3109.3,0.001]
[1763317277556,0.887304,3109.4,3109.3,0.001]
[1763317278550,0.887304,3109.3,3106.7,0.2387]
[1763317278917,0.887304,3109.3,3105.5,3.49568533]
[1763317278918,0.1821,3106.8,3105.5,0.27565343]
[1763317279111,0.405504,3106.7,3104.3,0.3505]
[1763317279325,0.887304,3106.7,3104.3,0.3505]
[1763317279525,0.405504,3106.5,3104.3,0.1118]
[1763317279750,0.405504,3106.5,3103.5,0.1118]
[1763317279751,0.455504,3106.2,3103.5,0.1118]
[1763317279953,0.05,3106.2,3103.5,0.1118]
[1763317280161,0.405504,3105.3,3102.8,0.09083496]
[1763317280652,0.405504,3104.6,3102.8,0.09083496]
[1763317280862,0.405504,3105.0,3102.8,0.09083496]
[1763317281028,0.405504,3104.8,3102.8,0.32953496]
[1763317281228,0.4818,3104.9,3102.8,0.09083496]
[1763317281454,0.405504,3104.7,3102.9,0.2387]
[1763317281649,0.405504,3104.7,3102.8,0.09083496]
[1763317281650,0.405504,3104.5,3102.8,0.09083496]
[1763317281864,0.4649,3104.4,3102.8,0.09083496]
[1763317282325,0.405504,3104.2,3102.8,0.09083496]
[1763317282737,0.405504,3104.0,3102.8,0.09083496]
[1763317282938,0.405504,3103.8,3102.8,0.09083496]
[1763317283166,0.4649,3103.9,3102.8,0.09083496]
[1763317283371,0.1863,3102.9,3102.8,3.496e-05]
[1763317283542,0.455504,3102.8,3099.6,0.1118]
[1763317283741,0.405504,3102.8,3100.9,0.0908]
[1763317283949,0.870404,3102.8,3100.9,0.0908]
[1763317284173,0.405504,3102.6,3100.9,0.0908]
[1763317284375,0.405504,3102.4,3100.9,0.0908]
[1763317284586,0.405504,3102.4,3099.6,0.1118]
[1763317284867,0.405504,3102.2,3099.7,0.3295]
[1763317285230,0.405504,3102.0,3099.7,0.3295]
[1763317285485,0.4649,3102.1,3099.7,1.4632408]
[1763317285694,0.1863,3102.9,3100.0,0.405504]
[1763317285831,1.13682317,3105.4,3100.0,0.405504]
[1763317285832,0.4649,3104.0,3102.1,0.405504]
[1763317286184,0.4649,3104.0,3102.0,0.71081001]
[1763317286345,0.50553845,3104.8,3102.1,0.735004]
[1763317286547,0.4649,3104.5,3102.3,0.405504]
[1763317287071,0.1863,3105.6,3104.4,0.1268]
[1763317287276,1.451,3105.9,3104.5,0.405504]
[1763317287437,1.451,3105.9,3104.5,0.735004]
[1763317287786,1.451,3105.9,3104.7,0.405504]
[1763317288078,0.4649,3107.3,3104.9,0.405504]
[1763317288231,0.4649,3107.3,3104.9,1.23356067]
[1763317288433,1.501,3108.6,3104.8,0.72510139]
[1763317288434,0.4649,3107.1,3105.0,0.82805667]
[1763317288635,0.05,3106.3,3102.8,0.3295]
[1763317288835,0.98059561,3106.2,3102.2,0.405504]
[1763317289050,0.4649,3106.5,3102.2,0.405504]
[1763317289289,0.4649,3106.5,3102.4,0.405504]
[1763317289488,0.4649,3106.5,3102.8,1.5392448]
[1763317289691,0.1863,3106.6,3103.0,1.5392448]
[1763317289974,0.4649,3106.5,3103.1,0.3295]
[1763317290295,0.405504,3106.4,3103.1,0.3295]
[1763317290793,0.4649,3106.3,3103.1,0.3295]
[1763317291099,0.4649,3106.3,3103.2,0.405504]
[1763317291456,0.4649,3106.3,3103.4,0.405504]
[1763317291656,0.4649,3106.3,3103.6,1.5392448]
[1763317291857,0.4649,3106.3,3103.8,0.405504]
[1763317292059,0.405504,3106.2,3103.9,0.3295]
[1763317292271,0.405504,3106.2,3102.1,3.5531227]
[1763317292473,0.405504,3106.0,3102.1,0.3295]
[1763317292673,0.405504,3106.0,3102.0,0.0908]
[1763317292674,0.405504,3105.8,3102.2,0.3295]
[1763317292992,1.1722382,3105.8,3102.2,0.3295]
[1763317293194,0.405504,3105.6,3102.2,0.3295]
[1763317293568,0.62861382,3105.7,3102.2,0.3295]
[1763317293569,0.405504,3105.4,3102.2,0.3295]
[1763317293987,0.405504,3105.4,3102.4,0.405504]
[1763317294286,0.870404,3105.4,3102.6,0.405504]
[1763317294791,0.4649,3105.4,3102.8,0.406504]
[1763317295193,0.4649,3105.4,3103.0,0.405504]
[1763317295586,0.4649,3105.4,3103.2,0.405504]
[1763317295764,0.4649,3106.0,3103.2,0.405504]
[1763317295959,0.4649,3106.5,3103.3,1.8687448]
[1763317296159,0.4649,3106.5,3103.4,1.48311762]
[1763317296383,0.4649,3106.5,3103.6,0.405504]
[1763317296583,0.4649,3106.5,3103.8,0.405504]
[1763317297006,0.4649,3106.5,3104.0,0.405504]
[1763317297183,0.4649,3106.5,3104.2,0.405504]
[1763317297568,0.4649,3106.5,3104.3,0.3295]
[1763317297894,0.4649,3106.5,3104.0,0.405504]
[1763317297895,0.4649,3106.5,3104.0,0.3295]
[1763317298100,0.4649,3106.5,3104.1,0.405504]
[1763317298301,0.4649,3106.5,3104.2,0.3295]
[1763317298663,0.405504,3106.4,3104.2,0.3295]
[1763317299062,0.4649,3106.3,3104.2,0.3295]
[1763317300460,0.1863,3106.6,3104.3,0.405504]
[1763317300705,2.4829504,3108.6,3104.3,0.405504]
[1763317300706,0.5053851,3107.5,3106.5,0.1118]
[1763317300910,0.1863,3108.2,3106.6,0.591804]
[1763317301062,0.1863,3109.7,3106.6,0.735004]
[1763317301262,0.1863,3109.7,3106.5,0.1118]
[1763317301263,0.97003311,3109.1,3106.8,0.405504]
[1763317301562,0.4669,3109.6,3106.8,0.405504]
[1763317301764,0.4669,3109.6,3107.0,0.405504]
[1763317302007,0.4649,3109.1,3107.0,0.405504]
[1763317302162,0.4649,3109.1,3106.6,0.405504]
[1763317302366,0.4649,3109.1,3107.2,0.405504]
[1763317302772,0.4649,3109.1,3106.7,0.405504]
[1763317302976,0.4649,3109.1,3107.4,0.405504]
[1763317303573,0.4649,3109.1,3107.4,0.3295]
[1763317303776,0.002,3109.6,3107.4,0.3295]
[1763317304714,0.4669,3109.2,3107.4,0.3295]
[1763317305205,0.4669,3109.2,3105.4,0.38253197]
[1763317305436,0.405504,3109.1,3106.9,0.3295]
[1763317305834,0.4669,3109.2,3106.9,0.3295]
[1763317305835,0.4649,3109.0,3106.9,0.3295]
[1763317306142,0.4649,3109.0,3107.0,0.3295]
[1763317306348,0.4649,3109.0,3107.1,0.405504]
[1763317306709,0.4649,3109.0,3107.1,0.735004]
[1763317307226,0.405504,3108.9,3105.9,0.3295]
[1763317307425,0.405504,3108.9,3106.3,0.3295]
[1763317307740,0.405504,3108.7,3106.3,0.3295]
[1763317308243,0.405504,3108.5,3105.8,0.3295]
[1763317308426,0.405504,3108.5,3105.9,0.405504]
[1763317308630,0.405504,3108.3,3105.9,0.405504]
[1763317308939,0.4649,3108.4,3106.1,0.405504]
[1763317309239,0.1863,3108.2,3106.1,0.405504]
[1763317309395,0.1863,3108.2,3104.2,1.10557789]
[1763317309603,0.4649,3108.1,3105.8,0.3295]
[1763317309829,0.4649,3108.7,3105.8,1.4632408]
[1763317310043,0.4649,3108.7,3106.1,1.5392448]
[1763317310336,0.4649,3108.7,3105.9,4.75399874]
[1763317310337,0.4649,3108.7,3106.3,0.405504]
[1763317310736,0.4649,3108.7,3106.5,0.405504]
[1763317310938,0.4669,3109.2,3106.5,0.405504]
[1763317311100,0.4669,3109.2,3106.7,0.405504]
[1763317311654,0.4669,3109.2,3106.9,0.405504]
[1763317311852,0.405504,3109.1,3106.9,0.405504]
[1763317312237,0.405504,3108.9,3106.8,0.3295]
[1763317312434,0.405504,3108.9,3105.7,0.0908]
[1763317312633,0.405504,3108.7,3106.3,0.3295]
[1763317312944,0.405504,3108.7,3105.7,0.0908]
[1763317312945,0.405504,3108.7,3105.8,0.3295]
[1763317313142,0.405504,3108.5,3105.8,0.3295]
[1763317313553,0.05,3108.9,3105.8,0.3295]
[1763317313554,0.405504,3108.3,3105.8,0.3295]
[1763317313956,0.405504,3108.1,3105.7,0.0908]
[1763317314329,0.405504,3107.9,3105.7,0.0908]
[1763317314546,0.405504,3107.9,3105.7,0.4203]
[1763317314856,0.1947,3107.8,3105.7,1.5540408]
[1763317315017,0.4593,3108.3,3105.9,0.405504]
[1763317315361,0.1947,3108.6,3106.1,0.405504]
[1763317315722,0.1947,3108.6,3106.3,0.405504]
[1763317316354,0.654,3108.6,3106.5,0.405504]
[1763317316688,0.4613,3108.7,3106.7,0.405504]
[1763317317188,0.4613,3108.7,3106.9,0.405504]
[1763317317649,0.4613,3108.7,3107.1,0.405504]
[1763317318050,0.4613,3108.7,3107.1,0.735004]
[1763317318574,0.405504,3108.6,3105.7,0.4203]
[1763317318773,0.405504,3108.6,3106.1,0.3295]
[1763317318988,0.4613,3108.7,3106.1,0.3295]
[1763317318989,0.405504,3108.4,3106.1,0.3295]
[1763317319491,0.405504,3108.2,3106.1,0.3295]
[1763317319868,0.4593,3108.1,3106.1,0.3295]
[1763317320057,0.4593,3108.1,3106.2,0.405504]
[1763317320456,0.4593,3108.1,3106.3,0.3295]
[1763317320652,0.4593,3108.1,3106.4,0.405504]
[1763317321192,0.1947,3106.5,3105.3,0.0908]
[1763317321581,0.654,3106.5,3105.3,0.0908]
[1763317323064,0.4593,3107.2,3105.5,0.405504]
[1763317323268,0.4593,3107.9,3105.5,0.405504]
[1763317323465,0.4593,3107.9,3105.7,0.405504]
[1763317323854,0.4593,3107.9,3105.9,0.405504]
[1763317324055,0.4593,3108.5,3105.9,0.405504]
[1763317324280,0.4593,3108.5,3106.1,1.5392448]
[1763317324488,0.4593,3108.5,3106.3,0.405504]
[1763317324973,0.002,3108.7,3106.5,0.405504]
[1763317325415,0.4593,3108.6,3106.7,0.405504]
[1763317325907,0.4593,3108.6,3106.7,0.3295]
[1763317326209,0.405504,3108.5,3105.8,0.83292964]
[1763317326423,0.405504,3108.5,3105.9,0.3295]
[1763317326571,0.4593,3108.4,3105.9,0.3295]
[1763317326773,0.4593,3108.4,3106.0,0.405504]
[1763317327213,0.405504,3108.3,3106.1,0.3295]
[1763317327573,0.405504,3108.1,3106.1,0.3295]
[1763317328041,0.4593,3108.0,3105.6,0.51637448]
[1763317328195,0.4593,3108.0,3105.8,0.405504]
[1763317328521,0.4593,3108.0,3105.7,0.3295]
[1763317328808,0.4593,3108.0,3105.8,0.405504]
[1763317329008,0.405504,3107.9,3105.6,0.18687448]
[1763317329210,0.405504,3107.9,3105.3,0.0908]
[1763317329412,0.405504,3107.7,3105.4,0.3295]
[1763317329710,0.405504,3107.7,3105.5,0.405504]
[1763317329873,0.405504,3107.5,3105.4,0.3295]
[1763317330073,0.4593,3107.6,3105.4,0.3295]
[1763317330280,0.654,3107.5,3105.4,0.3295]
[1763317330774,0.4593,3107.4,3105.4,0.3295]
[1763317330978,0.4593,3107.4,3105.5,0.405504]
[1763317331184,0.1947,3107.5,3105.5,0.405504]
[1763317331419,0.1947,3107.5,3105.6,0.83292964]
[1763317331420,0.654,3107.5,3105.6,0.83292964]
[1763317331726,0.1947,3105.5,3104.5,0.001]
[1763317332139,0.654,3105.5,3104.5,0.001]
[1763317332649,0.405504,3105.4,3104.5,0.001]
[1763317332950,0.4593,3105.4,3104.5,0.001]
[1763317336038,0.4851,3105.4,3104.5,0.001]
[1763317336540,0.405504,3105.3,3104.5,0.001]
[1763317336933,0.405504,3105.1,3104.5,0.001]
[1763317337136,0.405504,3105.1,3102.0,0.93072717]
[1763317337442,0.185,3104.2,3102.4,0.3305]
[1763317337648,0.185,3104.2,3102.5,0.405504]
[1763317337846,0.6701,3104.2,3102.4,0.3305]
[1763317338024,1.075604,3104.2,3102.4,0.3305]
[1763317338409,0.6701,3104.2,3102.4,0.3305]
[1763317340060,1.075604,3104.2,3102.4,0.3305]
[1763317340208,0.405504,3104.1,3102.0,0.0908]
[1763317340409,0.405504,3103.9,3102.0,0.0908]
[1763317340946,0.4851,3103.8,3102.1,0.3315]
[1763317341250,0.185,3104.2,3102.2,0.405504]
[1763317341435,0.6612,3104.2,3102.3,0.3315]
[1763317342121,0.6612,3104.2,3102.4,0.405504]
[1763317342538,0.19,3104.6,3102.6,0.405504]
[1763317342711,1.502,3105.9,3102.5,1.4652408]
[1763317342712,1.452,3105.9,3103.0,1.5392448]
[1763317342914,0.4762,3105.8,3103.0,1.5392448]
[1763317343129,0.185,3106.4,3102.9,7.06311497]
[1763317343130,0.4762,3106.2,3103.6,1.5392448]
[1763317343323,0.4762,3105.9,3103.6,1.5392448]
[1763317343523,0.4762,3105.9,3103.8,0.405504]
[1763317343748,7.30311497,3107.5,3104.2,1.5392448]
[1763317343749,0.4762,3106.9,3104.2,1.5392448]
[1763317344048,0.4762,3106.9,3105.8,0.1658]
[1763317344250,0.19,3107.5,3105.9,0.405504]
[1763317345053,0.19,3107.5,3106.1,0.405504]
[1763317345226,0.19,3107.5,3106.0,0.3315]
[1763317345227,0.6662,3107.5,3106.0,0.3315]
[1763317345628,0.002,3108.5,3106.1,0.405504]
[1763317345629,0.19,3107.8,3106.1,0.405504]
[1763317346031,0.4762,3107.7,3106.0,0.3315]
[1763317346853,0.4762,3107.7,3106.1,0.405504]
[1763317347263,0.4762,3107.7,3106.1,0.3315]
[1763317347631,0.4762,3107.7,3106.0,0.3315]
[1763317347831,0.19,3107.8,3106.1,0.405504]
[1763317348131,0.19,3107.8,3106.2,0.3315]
[1763317348330,0.4762,3107.7,3106.2,0.3315]
[1763317349153,0.4762,3107.7,3105.8,0.1658]
[1763317349360,0.405504,3107.6,3105.5,0.1658]
[1763317349544,0.405504,3107.6,3104.4,7.06311497]
[1763317349757,0.405504,3107.2,3104.5,0.9581351]
[1763317349978,1.5392448,3106.7,3103.6,0.3315]
[1763317350272,1.5392448,3106.7,3103.7,0.405504]
[1763317350471,0.405504,3106.5,3103.6,0.3315]
[1763317350876,0.405504,3106.3,3103.6,0.3315]
[1763317351239,0.405504,3106.1,3103.6,0.7394615]
[1763317351440,0.405504,3105.9,3103.3,0.3315]
[1763317351779,1.5392448,3105.5,3102.8,0.3315]
[1763317351980,2.9912448,3105.5,3103.5,0.001]
[1763317352277,0.405504,3105.3,3103.5,0.001]
[1763317352462,0.62604848,3105.3,3103.5,0.3325]
[1763317352782,0.405504,3105.1,3103.5,0.001]
[1763317353143,0.405504,3104.9,3103.5,0.001]
[1763317353341,0.4762,3104.8,3103.5,0.001]
[1763317353641,0.405504,3104.7,3103.5,0.001]
[1763317354138,0.405504,3104.5,3103.5,0.001]
[1763317354537,0.405504,3104.3,3103.5,0.001]
[1763317354777,0.4762,3104.4,3103.5,0.001]
[1763317355158,0.19,3104.8,3103.5,0.001]
[1763317355364,0.6662,3104.8,3103.5,0.001]
[1763317355780,0.19,3104.8,3103.5,0.001]
[1763317355978,0.19,3104.8,3103.5,0.3325]
[1763317356959,0.4762,3104.7,3103.5,0.001]
[1763317357549,0.4762,3105.5,3103.6,0.3315]
[1763317357749,0.4762,3105.3,3103.7,0.405504]
[1763317357944,0.6662,3105.6,3103.7,0.405504]
[1763317358182,0.4762,3105.3,3103.5,0.001]
[1763317358383,0.4762,3105.3,3103.7,0.3315]
[1763317358585,0.19,3105.6,3103.8,0.405504]
[1763317358886,0.16800988,3106.3,3103.7,0.3315]
[1763317358887,0.4762,3106.0,3104.0,0.405504]
[1763317359186,0.4762,3106.0,3103.7,0.3315]
[1763317359187,0.4762,3106.0,3104.1,0.7468619]
[1763317359347,0.4762,3106.0,3103.5,0.001]
[1763317359348,0.4762,3106.0,3104.2,0.737004]
[1763317359554,0.405504,3105.9,3104.2,0.3315]
[1763317359885,0.405504,3105.9,3103.5,0.406504]
[1763317360083,0.4762,3105.8,3103.8,0.405504]
[1763317360449,0.4762,3105.8,3103.8,0.3315]
[1763317361388,0.405504,3105.7,3103.5,0.001]
[1763317361693,0.405504,3105.7,3103.6,0.405504]
[1763317361936,0.4762,3105.6,3103.6,0.405504]
[1763317362217,0.4762,3105.6,3103.7,0.51867448]
[1763317362422,0.19,3105.5,3103.7,0.51867448]
[1763317362632,0.19,3105.5,3103.9,0.405504]
[1763317362834,0.19,3106.1,3103.9,0.405504]
[1763317363046,0.19,3106.1,3104.1,0.405504]
[1763317363247,0.19,3106.1,3104.2,0.18707448]
[1763317363248,0.6662,3106.1,3104.2,0.18707448]
[1763317363521,0.6662,3106.1,3104.3,0.405504]
[1763317363824,0.16800988,3106.3,3104.2,1.5392448]
[1763317364208,0.64420988,3106.3,3104.4,0.405504]
[1763317364581,0.64420988,3106.3,3104.3,0.4973]
[1763317364582,0.64420988,3106.3,3104.6,0.405504]
[1763317364831,0.16800988,3106.3,3104.9,1.5392448]
[1763317365012,0.16800988,3106.3,3105.1,0.405504]
[1763317365187,0.16800988,3106.3,3105.0,0.3315]
[1763317365387,0.64420988,3106.3,3104.6,0.405504]
[1763317365641,0.405504,3106.2,3104.3,0.4973]
[1763317365810,0.405504,3106.1,3104.3,0.1658]
[1763317366122,0.4762,3106.0,3104.3,0.1658]
[1763317366319,0.4762,3106.0,3104.4,0.737004]
[1763317367197,0.4762,3106.0,3104.4,0.3315]
[1763317367385,0.4762,3106.0,3104.3,0.1658]
[1763317367921,0.4762,3106.0,3104.4,0.737004]
[1763317368296,0.4762,3106.0,3104.6,0.405504]
[1763317369126,0.16800988,3106.3,3104.7,0.3315]
[1763317369288,0.64420988,3106.3,3104.7,0.3315]
[1763317369730,0.4762,3106.2,3104.8,0.405504]
[1763317370292,0.16800988,3106.3,3104.3,0.1658]
[1763317370512,0.881704,3106.2,3104.3,0.1658]
[1763317370803,0.4762,3106.2,3104.3,0.4973]
[1763317371018,0.881704,3106.1,3104.3,0.4973]
[1763317371218,0.881704,3106.1,3104.3,0.1658]
[1763317371544,0.405504,3105.9,3104.3,0.1658]
[1763317372027,0.405504,3105.7,3104.3,0.1658]
[1763317372442,0.4644,3106.1,3104.4,0.3315]
[1763317372594,0.4644,3105.6,3104.3,0.1658]
[1763317373145,0.4644,3105.6,3103.6,0.3315]
[1763317373146,0.405504,3105.5,3103.6,0.3315]
[1763317373515,0.4644,3105.4,3103.6,0.3315]
[1763317374435,0.4644,3105.4,3103.5,0.001]
[1763317374436,0.405504,3105.3,3103.5,0.001]
[1763317374931,0.6566,3105.2,3103.5,0.3325]
[1763317375441,0.1922,3105.2,3103.5,0.3325]
[1763317375735,0.1922,3105.5,3103.6,0.405504]
[1763317376032,0.1922,3105.5,3103.6,1.5392448]
[1763317376200,0.1922,3105.5,3103.8,0.405504]
[1763317376532,0.6566,3105.5,3103.8,0.405504]
[1763317376719,0.6566,3105.5,3103.9,0.3315]
[1763317377798,0.1922,3106.0,3104.0,0.405504]
[1763317378121,0.1922,3106.0,3104.2,0.405504]
[1763317378321,0.1922,3106.0,3104.1,0.405504]
[1763317378519,0.6566,3106.0,3104.1,0.405504]
[1763317378728,0.6566,3106.0,3104.2,0.3315]
[1763317379114,0.6566,3106.0,3104.3,0.571304]
[1763317379314,0.6566,3106.0,3104.4,0.20083819]
[1763317379633,0.6566,3106.0,3104.4,0.53233819]
[1763317380039,0.6566,3106.0,3104.5,0.3315]
[1763317380601,0.002,3106.3,3104.6,0.405504]
[1763317382241,0.4664,3106.3,3104.7,0.3315]
[1763317382811,0.4664,3106.3,3104.3,0.1658]
[1763317382812,0.405504,3106.2,3104.3,0.1658]
[1763317383336,0.002,3106.3,3104.3,0.1658]
[1763317383640,0.4644,3106.1,3104.3,0.1658]
[1763317383844,0.405504,3106.0,3103.5,1.10657789]
[1763317384151,0.405504,3106.0,3103.5,0.001]
[1763317384152,0.405504,3105.5,3103.5,0.001]
[1763317384299,0.405504,3105.3,3103.5,0.001]
[1763317384503,0.405504,3105.1,3103.5,0.001]
[1763317384846,8.84236112,3105.1,3103.5,0.001]
[1763317385005,0.405504,3104.9,3103.5,0.001]
[1763317385404,0.405504,3104.7,3103.5,0.001]
[1763317385631,0.1922,3103.6,3103.5,0.001]
[1763317385804,0.1922,3104.2,3103.5,0.001]
[1763317386004,0.869904,3104.1,3103.5,0.001]
[1763317386503,0.405504,3103.9,3103.5,0.001]
[1763317387034,0.405504,3103.7,3103.5,0.001]
[1763317387452,0.1922,3104.2,3103.5,0.001]
[1763317387752,0.86619753,3104.9,3103.5,0.001]
[1763317387753,0.4644,3104.9,3103.5,0.001]
[1763317387909,0.4644,3104.9,3103.5,0.3325]
[1763317388113,0.4644,3104.9,3103.5,0.001]
[1763317389316,1.05839753,3105.9,3103.5,0.001]
[1763317389317,0.002,3105.1,3103.6,0.3315]
[1763317390418,0.002,3105.1,3103.7,0.405504]
[1763317390762,0.002,3105.1,3104.2,0.3315]
[1763317392959,0.002,3105.1,3104.3,0.405504]
[1763317393185,0.002,3105.1,3104.4,0.3315]
[1763317393319,0.002,3105.1,3104.5,0.405504]
[1763317393957,0.002,3105.1,3104.7,0.405504]
[1763317394167,0.002,3105.1,3104.4,0.39228197]
[1763317394334,0.002,3105.1,3104.4,0.3315]
[1763317394720,0.002,3105.1,3104.5,0.405504]
[1763317395448,0.002,3105.1,3104.6,0.3315]
[1763317396170,0.002,3106.3,3104.7,0.405504]
[1763317396664,0.002,3106.3,3104.6,0.3315]
[1763317396665,0.002,3106.3,3104.9,0.405504]
[1763317397031,0.002,3106.3,3105.0,0.3315]
[1763317397337,0.4905,3106.2,3104.5,0.405504]
[1763317397537,0.4905,3106.2,3104.6,0.18707448]
[1763317397739,0.4905,3106.2,3104.5,0.3315]
[1763317399286,0.002,3106.3,3104.6,2.64482269]
[1763317399485,0.002,3106.3,3104.7,0.405504]
[1763317399637,0.6896,3106.2,3104.5,1.1337408]
[1763317399839,0.6896,3106.2,3104.6,0.55543187]
[1763317400160,0.6896,3106.2,3104.7,0.3315]
[1763317401249,0.1991,3106.2,3104.7,0.3315]
[1763317401451,0.002,3106.3,3104.8,1.5392448]
[1763317401660,0.002,3106.3,3104.8,0.405504]
[1763317401975,0.002,3106.3,3105.0,0.405504]
[1763317402146,0.1868,3106.3,3105.1,0.20083819]
[1763317402470,0.6634,3106.3,3104.9,0.4973]
[1763317402669,0.1868,3106.3,3105.0,0.3315]
[1763317402872,0.1868,3106.3,3105.0,0.737004]
[1763317404775,0.002,3106.3,3105.2,0.405504]
[1763317405278,0.002,3106.3,3105.4,0.405504]
[1763317405473,0.002,3106.3,3105.6,0.405504]
[1763317405974,0.002,3106.3,3105.8,0.405504]
[1763317406342,0.002,3106.3,3105.8,0.3315]
[1763317410285,0.002,3106.3,3105.9,1.5392448]
[1763317410443,0.002,3106.3,3106.1,0.405504]
[1763317410909,0.002,3106.3,3106.2,0.737004]
[1763317412177,0.002,3106.3,3106.2,1.8707448]
[1763317412569,0.002,3106.9,3106.3,1.8707448]
[1763317412811,0.002,3106.9,3106.8,10.19355]
[1763317413115,0.4786,3108.5,3106.9,1.5392448]
[1763317413265,0.4786,3108.5,3106.9,1.8707448]
[1763317413470,0.4786,3108.5,3107.1,0.405504]
[1763317413666,0.002,3108.5,3107.3,0.405504]
[1763317413867,0.002,3108.5,3107.3,0.737004]
[1763317414169,0.002,3108.5,3107.2,0.1658]
[1763317414170,0.4766,3108.4,3107.2,0.1658]
[1763317414369,0.4766,3108.4,3106.9,0.405504]
[1763317414571,0.4766,3108.4,3106.8,0.405504]
[1763317414867,0.4766,3108.4,3106.2,0.1658]
[1763317415294,0.4766,3108.4,3106.3,0.737004]
[1763317415479,0.4766,3108.4,3106.4,0.3315]
[1763317416200,0.4766,3108.4,3106.5,0.405504]
[1763317416592,0.4766,3108.4,3106.5,0.737004]
[1763317419624,0.4766,3108.4,3106.6,1.8707448]
[1763317419836,0.4766,3108.4,3106.8,0.405504]
[1763317420393,0.4766,3108.4,3106.8,0.737004]
[1763317420593,0.4766,3108.4,3107.0,0.405504]
[1763317421030,0.4766,3108.4,3106.9,0.405504]
[1763317421186,0.4766,3108.4,3107.0,0.3315]
[1763317423344,0.4766,3108.4,3106.8,0.405504]
[1763317424986,0.4766,3108.4,3106.8,0.737004]
[1763317425190,0.002,3108.5,3106.8,0.737004]
[1763317425191,0.002,3108.5,3108.3,0.1658]
[1763317425728,0.002,3108.5,3108.4,0.737004]
[1763317426657,0.002,3108.5,3108.4,0.405504]
[1763317426957,0.002,3109.2,3108.5,1.94413762]
[1763317427247,0.002,3109.2,3109.1,10.19355]
[1763317427451,0.002,3109.2,3109.1,2.1530958]
[1763317427649,0.002,3109.2,3109.1,1.1337408]
[1763317427814,0.002,3109.2,3109.1,1.5392448]
[1763317428014,0.002,3109.2,3109.1,1.1337408]
[1763317428630,0.002,3109.2,3109.1,1.8707448]
[1763317428825,0.002,3109.2,3109.1,2.05781928]
[1763317429421,0.002,3109.2,3109.1,1.32081528]
[1763317429761,0.4306,3109.6,3109.2,1.1337408]
[1763317429913,0.4306,3109.6,3108.1,0.3315]
[1763317429914,0.4306,3109.6,3108.0,0.046]
[1763317430115,0.1868,3109.9,3108.0,0.046]
[1763317430315,0.1868,3109.9,3108.1,0.3775]
[1763317430563,0.1868,3109.9,3108.4,4.75631473]
[1763317430720,0.002,3109.9,3108.9,1.5392448]
[1763317431120,0.002,3109.9,3109.1,0.405504]
[1763317431716,0.002,3109.9,3109.1,0.3775]
[1763317432631,0.1877,3109.9,3108.5,1.34106199]
[1763317432836,0.4812,3109.8,3108.5,1.34106199]
[1763317433030,0.4812,3109.8,3108.6,0.24748028]
[1763317433231,0.4812,3109.8,3108.0,0.046]
[1763317433552,0.4812,3109.8,3108.0,0.4235]
[1763317433854,0.4812,3109.8,3108.1,0.405504]
[1763317434059,0.4812,3109.8,3108.3,8.6543052]
[1763317434352,0.4812,3109.8,3108.5,0.405504]
[1763317434854,0.1877,3109.9,3108.5,0.783004]
[1763317435055,0.4812,3109.8,3108.7,0.405504]
[1763317435353,0.4812,3109.8,3108.6,0.19167448]
[1763317436118,0.1857,3108.7,3107.5,0.3775]
[1763317436319,0.1857,3108.7,3108.1,0.046]
[1763317436523,0.6669,3108.7,3107.2,0.3775]
[1763317436756,0.1857,3108.7,3107.4,1.1337408]
[1763317436955,0.4812,3108.6,3107.5,1.0165546]
[1763317437259,0.4812,3108.6,3107.0,9.0318052]
[1763317437453,0.1857,3108.7,3107.2,0.405504]
[1763317437659,0.4812,3109.0,3107.5,8.6543052]
[1763317437830,0.1857,3108.9,3107.6,1.5112408]
[1763317438030,0.593204,3109.9,3107.7,0.405504]
[1763317438031,0.4812,3109.8,3107.7,0.405504]
[1763317438354,0.4812,3109.8,3107.9,0.405504]
[1763317439562,0.4812,3109.8,3108.6,1.5392448]
[1763317439860,0.4812,3109.8,3108.2,0.405504]
[1763317440159,0.4812,3109.8,3108.4,0.405504]
[1763317441665,0.4812,3109.8,3108.4,0.783004]
[1763317443769,0.4812,3109.8,3108.1,1.1337408]
[1763317443770,0.4812,3109.8,3107.9,0.046]
[1763317443953,0.1857,3108.5,3107.1,0.3775]
[1763317444154,0.1857,3108.5,3106.9,0.1789509]
[1763317444350,0.4812,3108.4,3107.0,0.88342561]
[1763317444555,0.4812,3108.4,3106.8,0.001]
[1763317446653,0.1857,3108.5,3107.3,8.6543052]
[1763317446857,0.1857,3108.8,3107.5,0.405504]
[1763317447053,0.4812,3108.5,3106.9,1.5112408]
[1763317447234,0.4812,3108.5,3107.0,1.12721239]
[1763317447428,0.4812,3108.5,3107.1,0.783004]
[1763317447667,0.1857,3108.8,3107.3,0.405504]
[1763317447985,0.6669,3108.8,3107.3,0.405504]
[1763317448333,0.4812,3108.7,3107.3,0.405504]
[1763317449484,0.1857,3108.8,3107.5,0.405504]
[1763317449683,0.1857,3108.8,3107.7,0.405504]